[Event "*** Titled Tuesday Blitz"]
[Site "Chess.com"]
[Date "2020.03.03"]
[Round "1"]
[White "moro182"]
[Black "Resignify"]
[Result "1-0"]
[WhiteElo "2650"]
[BlackElo "2254"]
[TimeControl "180+1"]
[EndTime "9:07:52 PST"]
[Termination "moro182 won on time"]

1. d4 {[%clk 0:02:57.5]} 1... Nf6 {[%clk 0:02:59.4]} 2. c4 {[%clk 0:02:55.9]}
2... e6 {[%clk 0:02:59.3]} 3. Nc3 {[%clk 0:02:55.6]} 3... Bb4 {[%clk 0:02:58.9]}
4. Nf3 {[%clk 0:02:56.1]} 4... Bxc3+ {[%clk 0:02:57.4]} 5. bxc3 {[%clk 0:02:56]}
5... c5 {[%clk 0:02:57.6]} 6. g3 {[%clk 0:02:55.3]} 6... O-O {[%clk 0:02:53.2]}
7. Bg2 {[%clk 0:02:55.6]} 7... d6 {[%clk 0:02:52.9]} 8. O-O {[%clk 0:02:55.4]}
8... h6 {[%clk 0:02:50.1]} 9. Rb1 {[%clk 0:02:55.7]} 9... Nc6 {[%clk 0:02:49.6]}
10. Bf4 {[%clk 0:02:53.6]} 10... Re8 {[%clk 0:02:45.5]} 11. Qc2 {[%clk
0:02:50.1]} 11... e5 {[%clk 0:02:40.2]} 12. dxe5 {[%clk 0:02:47.7]} 12... dxe5
{[%clk 0:02:41.1]} 13. Rfd1 {[%clk 0:02:47.6]} 13... Qe7 {[%clk 0:02:37.6]} 14.
Be3 {[%clk 0:02:47.9]} 14... g6 {[%clk 0:02:32.4]} 15. Qb3 {[%clk 0:02:26.5]}
15... Bf5 {[%clk 0:02:18.3]} 16. Rb2 {[%clk 0:02:26]} 16... Rab8 {[%clk
0:02:17]} 17. Bxh6 {[%clk 0:02:24.1]} 17... Be6 {[%clk 0:01:55.6]} 18. Nd2
{[%clk 0:01:55.7]} 18... Qc7 {[%clk 0:01:50]} 19. Qb5 {[%clk 0:01:48.2]} 19...
Na5 {[%clk 0:01:37.1]} 20. Qa4 {[%clk 0:01:35.2]} 20... Red8 {[%clk 0:01:27.7]}
21. Bg5 {[%clk 0:01:30.6]} 21... Nh7 {[%clk 0:01:21.9]} 22. Bxd8 {[%clk
0:01:29.4]} 22... Rxd8 {[%clk 0:01:20.1]} 23. Rbb1 {[%clk 0:01:27.8]} 23... b6
{[%clk 0:01:11.6]} 24. Ne4 {[%clk 0:01:21.9]} 24... Bd7 {[%clk 0:01:06.1]} 25.
Qc2 {[%clk 0:01:18.3]} 25... Re8 {[%clk 0:00:52.8]} 26. h4 {[%clk 0:00:57.3]}
26... Bf5 {[%clk 0:00:45.4]} 27. Qd3 {[%clk 0:00:56.6]} 27... Kg7 {[%clk
0:00:42.9]} 28. h5 {[%clk 0:00:55.7]} 28... Be6 {[%clk 0:00:40.5]} 29. hxg6
{[%clk 0:00:51.2]} 29... fxg6 {[%clk 0:00:40.7]} 30. Nd6 {[%clk 0:00:49.6]}
30... Rd8 {[%clk 0:00:37.1]} 31. Nf5+ {[%clk 0:00:48.1]} 31... gxf5 {[%clk
0:00:34]} 32. Qxd8 {[%clk 0:00:49]} 32... Qxd8 {[%clk 0:00:33.4]} 33. Rxd8
{[%clk 0:00:49.9]} 33... Nxc4 {[%clk 0:00:32.9]} 34. Bd5 {[%clk 0:00:44.7]}
34... Bxd5 {[%clk 0:00:29.7]} 35. Rxd5 {[%clk 0:00:45.6]} 35... Nf6 {[%clk
0:00:29.4]} 36. Rd8 {[%clk 0:00:44.9]} 36... a5 {[%clk 0:00:18.9]} 37. f3 {[%clk
0:00:43.9]} 37... e4 {[%clk 0:00:17.9]} 38. Kf2 {[%clk 0:00:43.9]} 38... e3+
{[%clk 0:00:15.7]} 39. Kg2 {[%clk 0:00:41]} 39... Kf7 {[%clk 0:00:15.2]} 40. Rh1
{[%clk 0:00:39.5]} 40... a4 {[%clk 0:00:14.1]} 41. Ra8 {[%clk 0:00:37.4]} 41...
a3 {[%clk 0:00:13.9]} 42. Rb1 {[%clk 0:00:34.4]} 42... Nd5 {[%clk 0:00:12]} 43.
Rb3 {[%clk 0:00:33.8]} 43... Ke6 {[%clk 0:00:08.5]} 44. Ra4 {[%clk 0:00:33.5]}
44... Nb2 {[%clk 0:00:03.5]} 45. Raxa3 {[%clk 0:00:30.3]} 45... Nd1 {[%clk
0:00:02.9]} 46. c4 {[%clk 0:00:30.5]} 46... Nb4 {[%clk 0:00:02.7]} 47. Rxe3+
{[%clk 0:00:22.7]} 47... Nxe3+ {[%clk 0:00:03.6]} 48. Rxe3+ {[%clk 0:00:23.5]}
48... Kd6 {[%clk 0:00:04]} 49. a3 {[%clk 0:00:23.6]} 49... Nc2 {[%clk
0:00:03.8]} 50. Rc3 {[%clk 0:00:22.7]} 1-0

[Event "*** Titled Tuesday Blitz"]
[Site "Chess.com"]
[Date "2020.03.03"]
[Round "1"]
[White "Berardino"]
[Black "politeplayer"]
[Result "1-0"]
[WhiteElo "2641"]
[BlackElo "2250"]
[TimeControl "180+1"]
[EndTime "9:07:53 PST"]
[Termination "Berardino won on time"]

1. e4 {[%clk 0:03:00.5]} 1... c5 {[%clk 0:02:59.4]} 2. Nc3 {[%clk 0:03:00.5]}
2... e6 {[%clk 0:02:59.3]} 3. Nge2 {[%clk 0:02:59]} 3... a6 {[%clk 0:02:58.9]}
4. d4 {[%clk 0:02:56.8]} 4... cxd4 {[%clk 0:02:58.9]} 5. Nxd4 {[%clk 0:02:57.7]}
5... Nc6 {[%clk 0:02:58.6]} 6. Nxc6 {[%clk 0:02:56.5]} 6... bxc6 {[%clk
0:02:58.6]} 7. Bd3 {[%clk 0:02:57.4]} 7... d5 {[%clk 0:02:58.2]} 8. O-O {[%clk
0:02:57.7]} 8... Nf6 {[%clk 0:02:57.8]} 9. Qe2 {[%clk 0:02:52.6]} 9... Be7
{[%clk 0:02:56.1]} 10. b3 {[%clk 0:02:52.6]} 10... O-O {[%clk 0:02:52.9]} 11.
Bb2 {[%clk 0:02:52.8]} 11... Qc7 {[%clk 0:02:47.7]} 12. Na4 {[%clk 0:02:31.5]}
12... Nxe4 {[%clk 0:02:37.2]} 13. Bxe4 {[%clk 0:02:31.2]} 13... dxe4 {[%clk
0:02:37]} 14. Qxe4 {[%clk 0:02:31.6]} 14... Bb7 {[%clk 0:02:27.5]} 15. Qg4
{[%clk 0:02:20.7]} 15... e5 {[%clk 0:02:06]} 16. f4 {[%clk 0:02:20]} 16... f6
{[%clk 0:01:36.3]} 17. fxe5 {[%clk 0:02:12.8]} 17... fxe5 {[%clk 0:01:34.2]} 18.
Qe6+ {[%clk 0:02:12.9]} 18... Kh8 {[%clk 0:01:33.4]} 19. Bxe5 {[%clk 0:02:13]}
19... Qd8 {[%clk 0:01:17.1]} 20. Rad1 {[%clk 0:01:30.2]} 20... Rxf1+ {[%clk
0:01:11.1]} 21. Rxf1 {[%clk 0:01:31.1]} 21... Qe8 {[%clk 0:00:55.9]} 22. Bxg7+
{[%clk 0:01:24]} 22... Kxg7 {[%clk 0:00:54.9]} 23. Qe5+ {[%clk 0:01:20.8]} 23...
Kg8 {[%clk 0:00:48.5]} 24. Rf3 {[%clk 0:00:20.5]} 24... Bh4 {[%clk 0:00:37.1]}
25. Qf4 {[%clk 0:00:20.4]} 25... Qe1+ {[%clk 0:00:26.5]} 26. Rf1 {[%clk
0:00:20]} 26... Re8 {[%clk 0:00:26.1]} 27. g3 {[%clk 0:00:16.4]} 27... Qe3+
{[%clk 0:00:18.2]} 28. Qxe3 {[%clk 0:00:16.6]} 28... Rxe3 {[%clk 0:00:18.1]} 29.
gxh4 {[%clk 0:00:17]} 29... c5 {[%clk 0:00:17.9]} 30. Nxc5 {[%clk 0:00:15.4]}
30... Bc6 {[%clk 0:00:18.2]} 31. Nd3 {[%clk 0:00:13.2]} 31... Re2 {[%clk
0:00:17.2]} 32. Rf2 {[%clk 0:00:13.6]} 32... Re3 {[%clk 0:00:12.2]} 33. a4
{[%clk 0:00:12]} 33... h5 {[%clk 0:00:11.9]} 34. Kf1 {[%clk 0:00:09.6]} 34...
Bd5 {[%clk 0:00:11.6]} 35. Nf4 {[%clk 0:00:09.5]} 35... Be4 {[%clk 0:00:09.7]}
36. Nxh5 {[%clk 0:00:07.3]} 36... Bf3 {[%clk 0:00:04.1]} 37. Ng3 {[%clk
0:00:05.9]} 37... Bg4 {[%clk 0:00:03.5]} 38. Kg2 {[%clk 0:00:04.7]} 38... Be6
{[%clk 0:00:01.7]} 39. Nf5 {[%clk 0:00:05]} 39... Bd5+ {[%clk 0:00:02.1]} 40.
Kf1 {[%clk 0:00:04.5]} 40... Rf3 {[%clk 0:00:01]} 41. Ne7+ {[%clk 0:00:04.4]}
1-0

[Event "*** Titled Tuesday Blitz"]
[Site "Chess.com"]
[Date "2020.03.03"]
[Round "1"]
[White "Keranke"]
[Black "FedaMaster"]
[Result "1-0"]
[WhiteElo "2792"]
[BlackElo "2433"]
[TimeControl "180+1"]
[EndTime "9:07:57 PST"]
[Termination "Keranke won by resignation"]

1. Nf3 {[%clk 0:02:42.2]} 1... c5 {[%clk 0:02:59.3]} 2. g3 {[%clk 0:02:40.1]}
2... Nc6 {[%clk 0:02:59.3]} 3. Bg2 {[%clk 0:02:39.1]} 3... e5 {[%clk 0:02:59.6]}
4. d3 {[%clk 0:02:39]} 4... g6 {[%clk 0:02:58.5]} 5. O-O {[%clk 0:02:38.9]} 5...
Bg7 {[%clk 0:02:58.7]} 6. c4 {[%clk 0:02:39.4]} 6... Nge7 {[%clk 0:02:54.8]} 7.
Nc3 {[%clk 0:02:39.1]} 7... d6 {[%clk 0:02:55.3]} 8. a3 {[%clk 0:02:38.8]} 8...
O-O {[%clk 0:02:55.3]} 9. Rb1 {[%clk 0:02:38.1]} 9... a5 {[%clk 0:02:55.5]} 10.
Ne1 {[%clk 0:02:38]} 10... Be6 {[%clk 0:02:54.6]} 11. Nc2 {[%clk 0:02:38.4]}
11... d5 {[%clk 0:02:54.8]} 12. cxd5 {[%clk 0:02:38.1]} 12... Nxd5 {[%clk
0:02:55.7]} 13. Ne3 {[%clk 0:02:38.5]} 13... Nc7 {[%clk 0:02:54.5]} 14. Bd2
{[%clk 0:02:37]} 14... Qd7 {[%clk 0:02:51.3]} 15. Ne4 {[%clk 0:02:36]} 15... b6
{[%clk 0:02:46.8]} 16. Ng5 {[%clk 0:02:35.6]} 16... Ba2 {[%clk 0:02:34.1]} 17.
Ra1 {[%clk 0:02:33.5]} 17... Bd5 {[%clk 0:02:34.1]} 18. Nxd5 {[%clk 0:02:30.3]}
18... Nxd5 {[%clk 0:02:35]} 19. Qa4 {[%clk 0:02:25.2]} 19... Rad8 {[%clk
0:02:26.6]} 20. e3 {[%clk 0:01:38.6]} 20... h6 {[%clk 0:02:05]} 21. Ne4 {[%clk
0:01:22.5]} 21... Kh7 {[%clk 0:02:01.4]} 22. Rfc1 {[%clk 0:01:20.5]} 22... f5
{[%clk 0:01:58.2]} 23. Nxc5 {[%clk 0:01:03]} 23... bxc5 {[%clk 0:01:54.6]} 24.
Rxc5 {[%clk 0:01:03.9]} 24... Nce7 {[%clk 0:01:54.6]} 25. Qxa5 {[%clk
0:00:58.9]} 25... Nf6 {[%clk 0:01:30.5]} 26. Rc7 {[%clk 0:00:44.2]} 26... Qe6
{[%clk 0:01:11.7]} 27. Bb4 {[%clk 0:00:42.3]} 27... Rd7 {[%clk 0:01:10.3]} 28.
Rxd7 {[%clk 0:00:33.2]} 28... Qxd7 {[%clk 0:01:10.5]} 29. Rc1 {[%clk 0:00:33.9]}
29... Rc8 {[%clk 0:00:57.2]} 30. Rxc8 {[%clk 0:00:30.4]} 30... Nxc8 {[%clk
0:00:57.2]} 31. Qxe5 {[%clk 0:00:28.1]} 31... Qxd3 {[%clk 0:00:57.3]} 32. Qc7
{[%clk 0:00:27]} 32... Qd7 {[%clk 0:00:42.1]} 33. Qxd7 {[%clk 0:00:27.1]} 33...
Nxd7 {[%clk 0:00:43]} 34. b3 {[%clk 0:00:27.7]} 34... Bf8 {[%clk 0:00:39.5]} 35.
Bxf8 {[%clk 0:00:26.5]} 35... Nxf8 {[%clk 0:00:40.4]} 36. a4 {[%clk 0:00:27.1]}
36... Kg7 {[%clk 0:00:34.4]} 37. Bb7 {[%clk 0:00:25.1]} 37... Nd6 {[%clk
0:00:34.2]} 38. Bd5 {[%clk 0:00:25.3]} 38... Kf6 {[%clk 0:00:33.3]} 39. f4
{[%clk 0:00:24.6]} 39... Ke7 {[%clk 0:00:30.6]} 40. a5 {[%clk 0:00:24.5]} 40...
Nb5 {[%clk 0:00:29.2]} 41. b4 {[%clk 0:00:22.9]} 41... Nc7 {[%clk 0:00:30.1]}
42. Bc4 {[%clk 0:00:20.7]} 42... Nd7 {[%clk 0:00:28.6]} 43. b5 {[%clk
0:00:20.4]} 43... Ne6 {[%clk 0:00:25.8]} 44. b6 {[%clk 0:00:17.9]} 44... Nec5
{[%clk 0:00:26.1]} 45. Bd5 {[%clk 0:00:17]} 45... Kd6 {[%clk 0:00:25.6]} 46. Bf7
{[%clk 0:00:17.3]} 46... g5 {[%clk 0:00:26]} 47. Bg6 {[%clk 0:00:16.7]} 47...
Ke6 {[%clk 0:00:25.4]} 48. Be8 {[%clk 0:00:16.3]} 48... Nb8 {[%clk 0:00:25.8]}
49. Bb5 {[%clk 0:00:15.4]} 49... Nbd7 {[%clk 0:00:23.8]} 50. fxg5 {[%clk
0:00:15.5]} 50... hxg5 {[%clk 0:00:23.8]} 51. h4 {[%clk 0:00:16.4]} 51... g4
{[%clk 0:00:23.8]} 52. Kg2 {[%clk 0:00:14.4]} 52... Nb3 {[%clk 0:00:22.6]} 53.
Bc4+ {[%clk 0:00:13.8]} 53... Kd6 {[%clk 0:00:22.5]} 54. Bxb3 {[%clk 0:00:14.7]}
54... Kc6 {[%clk 0:00:22.9]} 55. Ba4+ {[%clk 0:00:14.4]} 55... Kb7 {[%clk
0:00:23.8]} 1-0

[Event "*** Titled Tuesday Blitz"]
[Site "Chess.com"]
[Date "2020.03.03"]
[Round "1"]
[White "piscatorox"]
[Black "Lubov_Gordyk"]
[Result "0-1"]
[WhiteElo "2249"]
[BlackElo "2637"]
[TimeControl "180+1"]
[EndTime "9:08:03 PST"]
[Termination "Lubov_Gordyk won on time"]

1. e4 {[%clk 0:03:00.9]} 1... e5 {[%clk 0:02:59.2]} 2. Nf3 {[%clk 0:03:01.2]}
2... d6 {[%clk 0:02:59.3]} 3. d4 {[%clk 0:02:59.2]} 3... exd4 {[%clk 0:02:59.6]}
4. Qxd4 {[%clk 0:03:00.1]} 4... Nf6 {[%clk 0:02:59.7]} 5. c4 {[%clk 0:02:57.3]}
5... Be7 {[%clk 0:02:57]} 6. h3 {[%clk 0:02:51.6]} 6... O-O {[%clk 0:02:56.5]}
7. Nc3 {[%clk 0:02:50.6]} 7... Re8 {[%clk 0:02:56.7]} 8. Be2 {[%clk 0:02:50]}
8... Nc6 {[%clk 0:02:55.4]} 9. Qe3 {[%clk 0:02:46]} 9... Bf8 {[%clk 0:02:54.1]}
10. O-O {[%clk 0:02:30.9]} 10... Bf5 {[%clk 0:02:52.8]} 11. Nd2 {[%clk
0:02:27.8]} 11... Bd7 {[%clk 0:02:46.7]} 12. a3 {[%clk 0:02:21.8]} 12... a6
{[%clk 0:02:44.5]} 13. b4 {[%clk 0:02:16.4]} 13... g6 {[%clk 0:02:43.8]} 14. Bb2
{[%clk 0:02:07.4]} 14... Bg7 {[%clk 0:02:43.8]} 15. Rab1 {[%clk 0:01:58.1]}
15... b5 {[%clk 0:02:30.3]} 16. c5 {[%clk 0:01:56.7]} 16... d5 {[%clk
0:02:27.4]} 17. Qf4 {[%clk 0:01:31.7]} 17... Nd4 {[%clk 0:02:14.2]} 18. e5
{[%clk 0:01:23.1]} 18... Nxe2+ {[%clk 0:02:04.3]} 19. Nxe2 {[%clk 0:01:21.9]}
19... Nh5 {[%clk 0:01:58.1]} 20. Qh2 {[%clk 0:01:18.8]} 20... Bf5 {[%clk
0:01:51.5]} 21. Rbe1 {[%clk 0:01:02.8]} 21... Bd3 {[%clk 0:01:50.6]} 22. g4
{[%clk 0:00:58.1]} 22... Nf6 {[%clk 0:01:48.1]} 23. exf6 {[%clk 0:00:53.4]}
23... Bxf6 {[%clk 0:01:23.8]} 24. Bxf6 {[%clk 0:00:52]} 24... Qxf6 {[%clk
0:01:23.4]} 25. f4 {[%clk 0:00:49.4]} 25... Qb2 {[%clk 0:01:19.4]} 26. Ng3
{[%clk 0:00:22.2]} 26... Bxf1 {[%clk 0:01:18]} 27. Rxe8+ {[%clk 0:00:13.3]}
27... Rxe8 {[%clk 0:01:15.9]} 28. Ndxf1 {[%clk 0:00:13.2]} 28... Qxa3 {[%clk
0:01:12.8]} 29. Qd2 {[%clk 0:00:12.4]} 29... Qa1 {[%clk 0:00:43.6]} 30. f5
{[%clk 0:00:12.6]} 30... Qe5 {[%clk 0:00:42.9]} 31. fxg6 {[%clk 0:00:09.4]}
31... fxg6 {[%clk 0:00:39.3]} 32. Kg2 {[%clk 0:00:09.5]} 32... c6 {[%clk
0:00:39.1]} 33. Qh6 {[%clk 0:00:09]} 33... Qd4 {[%clk 0:00:34.2]} 34. h4 {[%clk
0:00:09.1]} 34... Qxg4 {[%clk 0:00:33.3]} 35. h5 {[%clk 0:00:08.9]} 35... Re2+
{[%clk 0:00:29.1]} 36. Kg1 {[%clk 0:00:08.5]} 36... Re6 {[%clk 0:00:29.1]} 37.
hxg6 {[%clk 0:00:07.3]} 37... Qxg6 {[%clk 0:00:26.7]} 38. Qf4 {[%clk 0:00:07.6]}
38... h5 {[%clk 0:00:23.9]} 39. Qb8+ {[%clk 0:00:07.3]} 39... Re8 {[%clk
0:00:23.7]} 40. Qf4 {[%clk 0:00:06.9]} 40... Rf8 {[%clk 0:00:22.3]} 41. Qh4
{[%clk 0:00:06]} 41... Qg4 {[%clk 0:00:20.5]} 42. Qxh5 {[%clk 0:00:03.5]} 42...
Rxf1+ {[%clk 0:00:20.3]} 43. Kxf1 {[%clk 0:00:03]} 43... Qxg3 {[%clk 0:00:20.7]}
44. Qe8+ {[%clk 0:00:02.5]} 44... Kg7 {[%clk 0:00:20.9]} 45. Qd7+ {[%clk
0:00:02.3]} 45... Kh8 {[%clk 0:00:20.4]} 46. Qe8+ {[%clk 0:00:02.2]} 46... Qg8
{[%clk 0:00:19.8]} 47. Qh5+ {[%clk 0:00:02.2]} 47... Kg7 {[%clk 0:00:19.4]} 48.
Qg5+ {[%clk 0:00:02.5]} 48... Kf7 {[%clk 0:00:19.7]} 49. Qf5+ {[%clk 0:00:03]}
49... Ke7 {[%clk 0:00:19.9]} 50. Qe5+ {[%clk 0:00:03.4]} 50... Qe6 {[%clk
0:00:19.9]} 51. Qc7+ {[%clk 0:00:03.9]} 51... Kf6 {[%clk 0:00:20]} 52. Qh7
{[%clk 0:00:01.6]} 52... Qf5+ {[%clk 0:00:19.6]} 0-1

[Event "*** Titled Tuesday Blitz"]
[Site "Chess.com"]
[Date "2020.03.03"]
[Round "1"]
[White "saisree"]
[Black "GukeshDommaraju"]
[Result "0-1"]
[WhiteElo "2287"]
[BlackElo "2663"]
[TimeControl "180+1"]
[EndTime "9:08:04 PST"]
[Termination "GukeshDommaraju won by resignation"]

1. e4 {[%clk 0:03:00.9]} 1... c5 {[%clk 0:02:59.3]} 2. Nf3 {[%clk 0:03:00.3]}
2... Nc6 {[%clk 0:02:58.8]} 3. Bb5 {[%clk 0:02:56.7]} 3... g6 {[%clk 0:02:58.3]}
4. O-O {[%clk 0:02:55.1]} 4... Bg7 {[%clk 0:02:56.3]} 5. c3 {[%clk 0:02:53.9]}
5... e5 {[%clk 0:02:52.9]} 6. d3 {[%clk 0:02:48.1]} 6... Nge7 {[%clk 0:02:52.5]}
7. Nbd2 {[%clk 0:02:46.5]} 7... O-O {[%clk 0:02:52.4]} 8. Re1 {[%clk 0:02:46]}
8... d6 {[%clk 0:02:52.1]} 9. Nf1 {[%clk 0:02:45.1]} 9... a6 {[%clk 0:02:52.1]}
10. Ba4 {[%clk 0:02:44.2]} 10... h6 {[%clk 0:02:51.5]} 11. Ng3 {[%clk
0:02:28.2]} 11... Be6 {[%clk 0:02:50.2]} 12. Be3 {[%clk 0:02:23.1]} 12... b6
{[%clk 0:02:45]} 13. d4 {[%clk 0:02:18.9]} 13... exd4 {[%clk 0:02:39.2]} 14.
cxd4 {[%clk 0:02:18.8]} 14... Bg4 {[%clk 0:02:39.2]} 15. dxc5 {[%clk 0:02:04.5]}
15... dxc5 {[%clk 0:02:35.8]} 16. h3 {[%clk 0:02:04.7]} 16... Qxd1 {[%clk
0:02:21.9]} 17. Rexd1 {[%clk 0:02:02.9]} 17... Bxf3 {[%clk 0:02:21.7]} 18. gxf3
{[%clk 0:02:03]} 18... b5 {[%clk 0:02:06.4]} 19. Bc2 {[%clk 0:01:46]} 19... Nd4
{[%clk 0:01:58.1]} 20. Bxd4 {[%clk 0:01:43.2]} 20... Bxd4 {[%clk 0:01:57.8]} 21.
Rab1 {[%clk 0:01:43.1]} 21... Nc6 {[%clk 0:01:56.3]} 22. Ne2 {[%clk 0:01:35.7]}
22... Bg7 {[%clk 0:01:47.1]} 23. Rd5 {[%clk 0:01:34.4]} 23... Rac8 {[%clk
0:01:38.3]} 24. a3 {[%clk 0:01:10.3]} 24... Rfd8 {[%clk 0:01:24.5]} 25. Nc3
{[%clk 0:01:01.7]} 25... Nd4 {[%clk 0:01:18.9]} 26. Bd1 {[%clk 0:01:02.1]} 26...
Rxd5 {[%clk 0:01:16.5]} 27. Nxd5 {[%clk 0:01:01.4]} 27... Kf8 {[%clk 0:01:15.5]}
28. b3 {[%clk 0:00:58.6]} 28... Ne6 {[%clk 0:01:12.1]} 29. Kg2 {[%clk
0:00:57.5]} 29... Be5 {[%clk 0:01:11.4]} 30. a4 {[%clk 0:00:55.2]} 30... Ra8
{[%clk 0:01:06.3]} 31. Be2 {[%clk 0:00:51.8]} 31... Nd4 {[%clk 0:01:00.8]} 32.
Bf1 {[%clk 0:00:50.5]} 32... g5 {[%clk 0:00:58.9]} 33. Nb6 {[%clk 0:00:38.5]}
33... Rd8 {[%clk 0:00:57.9]} 34. Nd5 {[%clk 0:00:38.8]} 34... Rb8 {[%clk
0:00:55]} 35. Bd3 {[%clk 0:00:27]} 35... Ne6 {[%clk 0:00:45.5]} 36. Rc1 {[%clk
0:00:23.3]} 36... Bd4 {[%clk 0:00:42.6]} 37. Rc2 {[%clk 0:00:12.7]} 37... Ke8
{[%clk 0:00:41.2]} 38. Rc1 {[%clk 0:00:12.8]} 38... Kd7 {[%clk 0:00:40.2]} 39.
Rc2 {[%clk 0:00:09.9]} 39... c4 {[%clk 0:00:28.9]} 40. bxc4 {[%clk 0:00:09.2]}
40... bxa4 {[%clk 0:00:29.4]} 41. Ra2 {[%clk 0:00:09.4]} 41... Nc5 {[%clk
0:00:26.9]} 42. Bc2 {[%clk 0:00:10]} 42... a3 {[%clk 0:00:16.6]} 43. Bd1 {[%clk
0:00:03.7]} 43... Bb2 {[%clk 0:00:15.4]} 44. Ne3 {[%clk 0:00:03]} 44... Nd3
{[%clk 0:00:15.4]} 45. Nc2 {[%clk 0:00:03.4]} 45... Nc1 {[%clk 0:00:15]} 46.
Rxa3 {[%clk 0:00:02]} 46... Bxa3 {[%clk 0:00:15.2]} 47. Nxa3 {[%clk 0:00:02.9]}
47... Nd3 {[%clk 0:00:15.6]} 48. Be2 {[%clk 0:00:03.2]} 48... Nf4+ {[%clk
0:00:15.3]} 49. Kf1 {[%clk 0:00:04]} 49... Rb3 {[%clk 0:00:15.2]} 50. Nc2 {[%clk
0:00:03.1]} 50... Rb1+ {[%clk 0:00:15.5]} 51. Ne1 {[%clk 0:00:01.8]} 51... a5
{[%clk 0:00:15.5]} 0-1

[Event "*** Titled Tuesday Blitz"]
[Site "Chess.com"]
[Date "2020.03.03"]
[Round "1"]
[White "Sibelephant"]
[Black "marcodobrikov"]
[Result "0-1"]
[WhiteElo "3046"]
[BlackElo "2564"]
[TimeControl "180+1"]
[EndTime "9:08:11 PST"]
[Termination "marcodobrikov won on time"]

1. d4 {[%clk 0:02:55.8]} 1... Nf6 {[%clk 0:02:59.6]} 2. c4 {[%clk 0:02:55.5]}
2... g6 {[%clk 0:02:59.3]} 3. g3 {[%clk 0:02:54.8]} 3... Bg7 {[%clk 0:02:59.1]}
4. Bg2 {[%clk 0:02:55.1]} 4... d5 {[%clk 0:02:59.1]} 5. cxd5 {[%clk 0:02:55.3]}
5... Nxd5 {[%clk 0:03:00]} 6. e4 {[%clk 0:02:55.5]} 6... Nb6 {[%clk 0:02:59.6]}
7. Ne2 {[%clk 0:02:55.5]} 7... O-O {[%clk 0:02:59.1]} 8. O-O {[%clk 0:02:54.8]}
8... a5 {[%clk 0:02:57.3]} 9. Nbc3 {[%clk 0:02:53.4]} 9... Nc6 {[%clk
0:02:57.3]} 10. d5 {[%clk 0:02:52.1]} 10... Nb4 {[%clk 0:02:56.1]} 11. a3 {[%clk
0:02:39.8]} 11... Na6 {[%clk 0:02:55.3]} 12. Be3 {[%clk 0:02:39]} 12... Nc4
{[%clk 0:02:54.4]} 13. Bd4 {[%clk 0:02:39.1]} 13... Nxb2 {[%clk 0:02:43.5]} 14.
Qb3 {[%clk 0:02:35.5]} 14... Nd3 {[%clk 0:02:41.5]} 15. Bxg7 {[%clk 0:02:32.6]}
15... Kxg7 {[%clk 0:02:41.2]} 16. Na4 {[%clk 0:02:26.8]} 16... Ne5 {[%clk
0:02:33]} 17. Qc3 {[%clk 0:02:26.6]} 17... f6 {[%clk 0:02:32.8]} 18. f4 {[%clk
0:02:23.8]} 18... Nf7 {[%clk 0:02:27.6]} 19. Qxa5 {[%clk 0:02:23.3]} 19... e5
{[%clk 0:02:16.6]} 20. Rac1 {[%clk 0:02:02.1]} 20... Bg4 {[%clk 0:02:14]} 21.
Qd2 {[%clk 0:01:49.8]} 21... Qd6 {[%clk 0:02:10.4]} 22. Rc3 {[%clk 0:01:41.9]}
22... Rfe8 {[%clk 0:01:51.4]} 23. Nb2 {[%clk 0:01:38.8]} 23... Bxe2 {[%clk
0:01:47.7]} 24. Qxe2 {[%clk 0:01:38.8]} 24... exf4 {[%clk 0:01:47.5]} 25. gxf4
{[%clk 0:01:31.1]} 25... Qxd5 {[%clk 0:01:44.5]} 26. Kh1 {[%clk 0:01:26.5]}
26... Qd4 {[%clk 0:01:41.7]} 27. Rd3 {[%clk 0:01:23.4]} 27... Qc5 {[%clk
0:01:36.6]} 28. Rd7 {[%clk 0:01:13.8]} 28... Rad8 {[%clk 0:01:33.8]} 29. Qd3
{[%clk 0:00:58.1]} 29... Rxd7 {[%clk 0:01:30.5]} 30. Qxd7 {[%clk 0:00:57.9]}
30... Re7 {[%clk 0:01:29.5]} 31. Qd3 {[%clk 0:00:57.8]} 31... Qd6 {[%clk
0:01:24]} 32. Qc3 {[%clk 0:00:54.3]} 32... Nc5 {[%clk 0:01:12.2]} 33. Nc4 {[%clk
0:00:50.6]} 33... Qd3 {[%clk 0:01:08.6]} 34. Qxd3 {[%clk 0:00:33.8]} 34... Nxd3
{[%clk 0:01:09.5]} 35. a4 {[%clk 0:00:33.6]} 35... Nd6 {[%clk 0:01:01.8]} 36.
Nxd6 {[%clk 0:00:30.1]} 36... cxd6 {[%clk 0:01:02.7]} 37. a5 {[%clk 0:00:29.4]}
37... Rc7 {[%clk 0:00:54.2]} 38. h3 {[%clk 0:00:25]} 38... Rc2 {[%clk
0:00:52.9]} 39. e5 {[%clk 0:00:22.4]} 39... dxe5 {[%clk 0:00:51.6]} 40. fxe5
{[%clk 0:00:22.6]} 40... Nxe5 {[%clk 0:00:49.2]} 41. Bxb7 {[%clk 0:00:22.5]}
41... Ra2 {[%clk 0:00:49.1]} 42. a6 {[%clk 0:00:22.3]} 42... f5 {[%clk
0:00:46.9]} 43. Rd1 {[%clk 0:00:18.4]} 43... f4 {[%clk 0:00:44.9]} 44. Rd4
{[%clk 0:00:11.9]} 44... g5 {[%clk 0:00:43.3]} 45. h4 {[%clk 0:00:12.1]} 45...
h6 {[%clk 0:00:41.8]} 46. Rd5 {[%clk 0:00:11.1]} 46... Kf6 {[%clk 0:00:40.9]}
47. Rd6+ {[%clk 0:00:11.4]} 47... Kf5 {[%clk 0:00:40.6]} 48. Rxh6 {[%clk
0:00:08.8]} 48... g4 {[%clk 0:00:37.4]} 49. Bc8+ {[%clk 0:00:06.2]} 49... Ke4
{[%clk 0:00:34.7]} 50. Bb7+ {[%clk 0:00:06.1]} 50... Ke3 {[%clk 0:00:33.5]} 51.
Re6 {[%clk 0:00:05.9]} 51... Kd4 {[%clk 0:00:24]} 52. h5 {[%clk 0:00:03.6]}
52... f3 {[%clk 0:00:21.4]} 53. h6 {[%clk 0:00:01.2]} 53... g3 {[%clk 0:00:20]}
54. Rxe5 {[%clk 0:00:01.2]} 54... Ra1+ {[%clk 0:00:17.6]} 0-1